bitfinex/quotes_SOLUSD_20240816
["timestamp","ask_amount","ask_price","bid_price","bid_amount"]
[1723775593658,0.28178942,144.52,144.49,21.58191866]
[1723775593869,0.28178942,144.52,144.47,20.0]
[1723775594163,0.28178942,144.52,144.45,20.0]
[1723775594739,0.28178942,144.52,144.47,40.0]
[1723775595034,0.28178942,144.52,144.47,20.0]
[1723775595349,12.44688942,144.52,144.44,20.0]
[1723775596136,0.28178942,144.52,144.47,40.0]
[1723775596348,0.28178942,144.52,144.49,20.0]
[1723775596548,0.28178942,144.52,144.47,20.0]
[1723775596780,0.28178942,144.52,144.44,20.0]
[1723775596959,7.20118942,144.52,144.42,20.0]
[1723775597294,8.65056659,144.51,144.42,20.0]
[1723775597578,40.95072984,144.51,144.38,20.0]
[1723775597802,6.9223,144.46,144.38,20.0]
[1723775598077,6.9223,144.46,144.34,20.0]
[1723775598078,6.9238,144.43,144.34,20.0]
[1723775598244,0.12549,144.43,144.34,20.0]
[1723775598444,6.9243,144.42,144.34,20.0]
[1723775598646,0.25098,144.44,144.34,20.0]
[1723775598846,0.12549,144.44,144.33,20.0]
[1723775599042,1.85707721,144.44,144.31,40.0]
[1723775599244,32.0985,144.42,144.31,40.0]
[1723775599456,33.83038665,144.42,144.31,40.0]
[1723775599680,40.75508665,144.42,144.33,20.0]
[1723775599865,6.9247,144.41,144.33,20.0]
[1723775600058,33.83038665,144.42,144.28,14.7590371]
[1723775600059,6.9262,144.38,144.3,20.0]
[1723775600259,6.9262,144.38,144.2,9.50203018]
[1723775600260,14.24994161,144.37,144.27,20.0]
[1723775600468,14.24994161,144.37,144.25,7.24273435]
[1723775600469,6.9285,144.34,144.25,7.24273435]
[1723775600684,6.9285,144.34,144.24,20.0]
[1723775600685,6.9287,144.33,144.24,20.0]
[1723775600975,6.9292,144.32,144.27,20.0]
[1723775601183,6.9286,144.33,144.27,20.0]
[1723775601490,6.9276,144.35,144.29,20.0]
[1723775601655,12.3921,144.37,144.29,20.0]
[1723775601843,19.3189,144.37,144.29,20.0]
[1723775602049,12.3921,144.37,144.29,20.0]
[1723775602282,6.928,144.35,144.26,20.0]
[1723775602451,6.929,144.32,144.24,40.0]
[1723775602650,6.929,144.32,144.22,20.0]
[1723775602847,1.85846945,144.35,144.21,27.7550371]
[1723775602848,6.9295,144.31,144.25,20.0]
[1723775603150,0.12549,144.31,144.2,20.0]
[1723775603383,6.9305,144.29,144.2,20.0]
[1723775603681,39.22,144.31,144.19,20.0]
[1723775603861,6.931,144.28,144.19,20.0]
[1723775604064,6.9315,144.27,144.19,20.0]
[1723775604389,0.25098,144.3,144.19,20.0]
[1723775604390,6.931,144.28,144.19,20.0]
[1723775604676,7.05729,144.27,144.17,40.0]
[1723775604880,7.05729,144.27,144.14,47.6690398]
[1723775604881,0.12549,144.25,144.14,67.6690398]
[1723775605088,0.12549,144.25,144.13,20.0]
[1723775605089,13.1356,144.24,144.13,40.0]
[1723775605385,0.12549,144.23,144.15,20.0]
[1723775605673,0.12549,144.23,144.13,47.7550371]
[1723775605889,6.9339,144.22,144.13,47.7550371]
[1723775606270,6.9345,144.21,144.11,40.0]
[1723775606456,0.12549,144.23,144.14,40.0]
[1723775606656,0.12549,144.23,144.12,7.7550371]
[1723775606657,6.9334,144.23,144.12,47.7550371]
[1723775606859,6.9339,144.22,144.12,47.7550371]
[1723775607061,6.9333,144.23,144.14,20.0]
[1723775607582,13.26109,144.24,144.14,86.9750371]
[1723775607583,13.1356,144.24,144.14,86.9750371]
[1723775607990,14.86947466,144.24,144.14,86.9750371]
[1723775608153,20.0686,144.24,144.16,20.0]
[1723775608497,13.1356,144.24,144.17,0.25098]
[1723775608653,8.79278978,144.23,144.17,0.12549]
[1723775608850,0.12549,144.22,144.11,20.0]
[1723775609182,41.07999488,144.22,144.09,20.0]
[1723775609363,41.07999488,144.22,144.1,20.0]
[1723775609364,1.85999488,144.22,144.1,20.0]
[1723775609564,0.12549,144.21,144.1,40.0]
[1723775609750,0.12549,144.22,144.1,40.0]
[1723775609949,1.85992925,144.23,144.12,20.0]
[1723775610203,1.85992925,144.23,144.13,40.0]
[1723775610204,0.25098,144.23,144.13,40.0]
[1723775610355,54.0899519,144.24,144.17,20.0]
[1723775610356,13.1356,144.24,144.17,20.0]
[1723775610696,13.1356,144.24,144.18,0.12549]
[1723775610853,52.3556,144.24,144.13,17.83880502]
[1723775611051,52.3556,144.24,144.13,7.7550371]
[1723775611297,13.1356,144.24,144.16,20.0]
[1723775611480,13.1356,144.24,144.18,20.0]
[1723775611791,13.1356,144.24,144.17,40.0]
[1723775611995,13.1356,144.24,144.18,20.0]
[1723775612174,12.8031,144.3,144.22,20.0]
[1723775612374,52.58312749,144.36,144.27,20.0]
[1723775612580,12.8031,144.36,144.31,20.0]
[1723775612877,52.3334706,144.42,144.32,0.25098]
[1723775613089,52.3331706,144.42,144.32,0.25098]
[1723775613288,45.4088706,144.42,144.34,20.0]
[1723775613602,45.4088706,144.42,144.35,0.12549]
[1723775613802,45.4088706,144.42,144.32,0.25098]
[1723775613962,45.4088706,144.42,144.33,79.22]
[1723775614164,45.4088706,144.42,144.35,20.0]
[1723775614665,45.4088706,144.42,144.36,0.12549]
[1723775614666,47.14077005,144.42,144.36,0.12549]
[1723775614886,45.4088706,144.42,144.34,0.25098]
[1723775615099,0.0715706,144.42,144.36,20.0]
[1723775615269,0.0715706,144.42,144.37,0.25098]
[1723775615590,0.0715706,144.42,144.41,20.0]
[1723775615769,0.0715706,144.42,144.41,20.25098]
[1723775617301,0.0715706,144.42,144.41,0.25098]
[1723775617506,0.0715706,144.42,144.34,40.0]
[1723775617665,0.0715706,144.42,144.19,0.69376652]
[1723775617666,0.0715706,144.42,144.32,40.0]
[1723775617864,0.0715706,144.42,144.36,20.0]
[1723775618168,0.0715706,144.42,144.35,20.0]
[1723775618361,0.0715706,144.42,144.32,1.58378207]
[1723775618609,0.1970606,144.42,144.31,20.0]
[1723775618831,7.05119,144.39,144.29,20.0]
[1723775619041,0.12549,144.38,144.29,20.0]
[1723775619322,0.12549,144.39,144.28,20.0]
[1723775619522,0.12549,144.39,144.31,20.0]
[1723775619819,1.92911836,144.42,144.3,20.0]
[1723775620132,42.2482,144.39,144.26,20.0]
[1723775620322,0.12549,144.34,144.23,20.0]
[1723775620619,0.12549,144.36,144.23,40.0]
[1723775620917,0.12549,144.35,144.25,20.0]
[1723775621084,0.12549,144.35,144.23,40.0]
[1723775621286,0.12549,144.35,144.27,20.0]
[1723775621490,43.98058767,144.39,144.27,79.22]
[1723775621692,42.2482,144.39,144.3,20.0]
[1723775622319,1.73226706,144.38,144.28,20.0]
[1723775622543,49.1743,144.39,144.28,20.0]
[1723775622688,42.2482,144.39,144.31,20.0]
[1723775622893,42.2482,144.39,144.32,0.25098]
[1723775623209,43.98035627,144.39,144.27,59.22]
[1723775623527,49.1739,144.39,144.27,59.22]
[1723775623697,42.2482,144.39,144.29,20.0]
[1723775624041,42.2482,144.39,144.31,20.0]
[1723775624202,42.2482,144.39,144.29,40.0]
[1723775624403,42.2482,144.39,144.29,20.0]
[1723775624602,42.2482,144.39,144.31,20.0]
[1723775625205,42.2482,144.39,144.32,0.25098]
[1723775625404,42.2482,144.39,144.31,0.25098]
[1723775625930,42.2482,144.39,144.28,20.0]
[1723775626140,49.1739,144.39,144.28,20.0]
[1723775626345,49.1739,144.39,144.27,39.22]
[1723775626523,0.12549,144.38,144.28,40.0]
[1723775626842,42.2482,144.39,144.28,40.0]
[1723775627010,0.12549,144.38,144.28,40.0]
[1723775627211,0.12549,144.38,144.24,7.004]
[1723775627212,7.17718,144.38,144.25,20.0]
[1723775627559,8.90986955,144.38,144.26,20.0]
[1723775627750,39.22,144.35,144.18,40.0]
[1723775628045,0.12549,144.31,144.18,79.22]
[1723775628205,6.9313,144.28,144.18,20.0]
[1723775628408,1.85910688,144.31,144.18,20.0]
[1723775628612,0.12549,144.28,144.18,20.0]
[1723775628820,6.9319,144.26,144.15,59.22]
[1723775629021,6.9329,144.24,144.15,20.0]
[1723775629244,32.8416,144.26,144.16,20.0]
[1723775629411,32.8416,144.26,144.17,20.0]
[1723775629614,32.8416,144.26,144.18,20.0]
[1723775629814,32.8416,144.26,144.22,20.0]
[1723775630111,32.8416,144.26,144.18,59.22]
[1723775630319,39.7739,144.26,144.15,80.80564986]
[1723775630510,0.12549,144.25,144.15,80.80564986]
[1723775630739,12.6118,144.24,144.15,1.58564986]
[1723775630945,12.6118,144.24,144.15,41.58564986]
[1723775631125,12.6118,144.24,144.18,20.0]
[1723775631310,12.6118,144.24,144.15,60.80564986]
[1723775631311,12.6118,144.24,144.2,20.0]
[1723775631527,12.6118,144.3,144.2,40.0]
[1723775631734,12.6118,144.3,144.22,20.0]
[1723775632047,12.6118,144.3,144.21,59.22]
[1723775632259,12.6118,144.3,144.22,0.25098]
[1723775632417,12.6118,144.3,144.22,20.25098]
[1723775633864,12.6118,144.3,144.22,0.12549]
[1723775634635,12.6118,144.3,144.22,20.12549]
[1723775635037,12.6118,144.3,144.23,0.12549]
[1723775635356,12.6118,144.3,144.18,39.22]
[1723775635669,0.12549,144.29,144.18,20.0]
[1723775636168,12.6118,144.3,144.23,40.0]
[1723775636349,12.6118,144.3,144.23,20.0]
[1723775636548,12.6118,144.3,144.25,20.0]
[1723775637069,12.6118,144.3,144.26,0.25098]
[1723775637440,12.6118,144.3,144.2,40.0]
[1723775637643,14.34502752,144.3,144.2,20.0]
[1723775637844,12.6118,144.3,144.2,40.0]
[1723775638044,19.5419,144.3,144.19,1.58520999]
[1723775638248,19.5419,144.3,144.18,59.22]
[1723775638249,7.18148,144.29,144.18,59.22]
[1723775638550,0.25098,144.29,144.18,79.22]
[1723775638743,0.25098,144.29,144.18,59.22]
[1723775639050,0.12549,144.29,144.2,20.0]
[1723775639247,12.6118,144.3,144.2,20.0]
[1723775639459,12.6118,144.3,144.2,40.0]
[1723775639840,12.6118,144.3,144.22,20.0]
[1723775640063,19.5418,144.3,144.18,79.22]
[1723775640270,6.9305,144.29,144.19,0.12549]
[1723775640470,12.6118,144.3,144.19,0.12549]
[1723775641048,0.12549,144.29,144.19,0.12549]
[1723775641253,0.12549,144.29,144.16,20.0]
[1723775641254,1.98471546,144.29,144.16,40.0]
[1723775641473,6.9315,144.27,144.16,40.0]
[1723775641686,6.931,144.28,144.19,20.0]
[1723775641963,6.9311,144.28,144.2,20.0]
[1723775642157,7.18148,144.29,144.2,20.0]
[1723775642368,0.12549,144.29,144.21,20.0]
[1723775642592,12.6118,144.3,144.24,20.0]
[1723775642767,32.7058,144.33,144.26,20.0]
[1723775642968,32.7058,144.33,144.27,0.25098]
[1723775643181,32.7058,144.33,144.26,0.25098]
[1723775643382,8.6623324,144.32,144.23,0.12549]
[1723775643586,8.6623324,144.32,144.22,0.25098]
[1723775643765,1.7332324,144.32,144.22,0.25098]
[1723775643969,0.12549,144.3,144.18,20.0]
[1723775644165,7.18098,144.3,144.18,20.0]
[1723775644387,32.7058,144.33,144.23,20.0]
[1723775644584,6.9299,144.31,144.21,20.0]
[1723775644797,32.7058,144.33,144.24,20.0]
[1723775645005,32.7058,144.33,144.22,20.0]
[1723775645165,6.9294,144.32,144.22,20.0]
[1723775645496,32.7058,144.33,144.19,59.22]
[1723775645497,1.73330394,144.31,144.19,79.22]
[1723775645663,0.12549,144.3,144.19,79.22]
[1723775645858,41.36825258,144.33,144.19,79.22]
[1723775646191,6.9291,144.32,144.21,20.0]
[1723775646397,32.7058,144.33,144.21,40.0]
[1723775646613,32.7058,144.33,144.28,40.0]
[1723775646779,12.5487,144.36,144.3,20.0]
[1723775647297,12.5487,144.36,144.31,0.25098]
[1723775647467,12.5487,144.36,144.32,20.0]
[1723775647668,12.5487,144.36,144.33,0.25098]
[1723775648607,0.0715706,144.42,144.36,20.0]
[1723775648608,13.0566,144.41,144.36,20.0]
[1723775648773,13.0566,144.41,144.37,0.25098]
[1723775649406,13.0566,144.41,144.39,20.0]
[1723775649687,13.0566,144.41,144.4,0.25098]
[1723775649913,0.0715706,144.42,144.4,0.25098]
[1723775650089,0.0715706,144.42,144.41,20.0]
[1723775650411,0.0715706,144.42,144.41,65.25098]
[1723775650985,0.0715706,144.42,144.41,0.25098]
[1723775651791,0.0715706,144.42,144.34,20.0]
[1723775652099,0.0715706,144.42,144.38,20.0]
[1723775652418,0.0715706,144.42,144.34,40.0]
[1723775652916,0.0715706,144.42,144.36,40.0]
[1723775653422,0.0715706,144.42,144.39,20.0]
[1723775653592,0.0715706,144.42,144.36,40.0]
[1723775653791,0.0715706,144.42,144.38,40.0]
[1723775654120,0.0715706,144.42,144.39,0.12549]
[1723775654287,0.0715706,144.42,144.33,20.0]
[1723775654481,0.0715706,144.42,144.33,40.0]
[1723775654926,0.1970606,144.42,144.3,20.0]
[1723775655092,0.0715706,144.42,144.32,40.0]
[1723775655292,0.0715706,144.42,144.34,20.0]
[1723775655496,0.0715706,144.42,144.29,40.0]
[1723775655497,0.1970606,144.42,144.29,40.0]
[1723775655726,6.9256,144.39,144.27,59.22]
[1723775655900,20.1558,144.37,144.27,20.0]
[1723775656217,61.10845215,144.37,144.27,20.0]
[1723775656389,61.10845215,144.37,144.25,0.69347868]
[1723775656591,61.10845215,144.37,144.24,20.0]
[1723775656592,6.9282,144.34,144.24,20.0]
[1723775656817,0.12549,144.34,144.24,20.0]
[1723775657015,6.929,144.32,144.22,1.58488024]
[1723775657330,31.6204,144.28,144.19,40.0]
[1723775658194,31.6204,144.28,144.22,20.0]
[1723775658513,31.6204,144.28,144.2,20.0]
[1723775658942,1.73336017,144.27,144.19,20.0]
[1723775659126,13.2702,144.26,144.16,79.22]
[1723775659423,13.2702,144.26,144.16,20.0]
[1723775659424,1.73375656,144.25,144.16,20.0]
[1723775659587,1.73375656,144.25,144.14,20.0]
[1723775659791,7.18388,144.24,144.14,20.0]
[1723775660020,1.734189,144.23,144.15,20.0]
[1723775660547,1.73406493,144.24,144.15,20.0]
[1723775660839,6.9324,144.25,144.1,46.46939592]
[1723775660840,13.2702,144.26,144.18,20.0]
[1723775661144,13.2702,144.26,144.13,39.22]
[1723775661145,1.73394852,144.25,144.15,20.0]
[1723775661299,39.34549,144.24,144.12,20.0]
[1723775661505,1.85981061,144.23,144.14,20.0]
[1723775662425,0.12549,144.23,144.14,20.0]
[1723775662735,8.79350907,144.23,144.14,20.0]
[1723775663037,8.79373233,144.22,144.14,20.0]
[1723775663242,7.05889,144.23,144.13,20.0]
[1723775663726,0.12549,144.22,144.13,20.0]
[1723775664044,0.12549,144.22,144.11,40.0]
[1723775664251,7.05969,144.22,144.11,40.0]
[1723775664533,0.12549,144.21,144.13,20.0]
[1723775664751,0.12549,144.23,144.17,20.0]
[1723775664910,0.12549,144.24,144.17,20.0]
[1723775664911,7.05849,144.24,144.17,20.0]
[1723775665113,13.2702,144.26,144.13,20.0]
[1723775665114,13.2702,144.26,144.2,20.0]
[1723775665308,13.2702,144.26,144.21,20.0]
[1723775665518,13.2702,144.26,144.22,0.12549]
[1723775665725,15.00397078,144.26,144.19,0.12549]
[1723775666053,21.93607078,144.26,144.18,0.25098]
[1723775666343,6.9343,144.21,144.11,20.0]
[1723775666546,39.22,144.23,144.11,20.0]
[1723775666837,39.22,144.23,144.12,20.0]
[1723775666838,0.12549,144.21,144.12,20.0]
[1723775667042,0.12549,144.21,144.11,20.0]
[1723775667043,7.18528,144.21,144.11,20.0]
[1723775667224,7.18528,144.21,144.12,20.0]
[1723775667428,0.12549,144.21,144.12,20.0]
[1723775667728,0.12549,144.18,144.06,7.2511247]
[1723775668127,6.9368,144.16,144.05,20.0]
[1723775668917,7.06229,144.16,144.08,20.0]
[1723775669225,8.92336824,144.15,144.04,20.0]
[1723775669440,0.12549,144.13,144.04,20.0]
[1723775669615,0.12549,144.13,144.01,40.0]
[1723775670038,7.06459,144.11,144.01,20.0]
[1723775670218,0.12549,144.1,144.01,40.0]
[1723775670427,0.12549,144.1,144.01,40.504906]
[1723775670635,0.12549,144.1,144.01,20.504906]
[1723775670845,0.12549,144.1,144.01,0.504906]
[1723775671017,7.06509,144.1,144.01,0.504906]
[1723775671419,0.12549,144.11,144.01,0.504906]
[1723775671650,1.9868206,144.11,144.01,0.504906]
[1723775671863,12.6454,144.12,144.03,20.0]
[1723775672023,12.6454,144.12,144.07,20.0]
[1723775672349,12.6454,144.12,144.05,20.0]
[1723775672752,12.6454,144.12,144.1,20.0]
[1723775672933,13.061,144.18,144.11,0.12549]
[1723775673255,6.9369,144.16,144.07,0.12549]
[1723775673554,8.67237459,144.15,144.07,0.12549]
[1723775673720,1.73528434,144.17,144.02,20.0]
[1723775673923,6.9382,144.13,144.01,0.504906]
[1723775674621,0.12549,144.11,144.01,0.504906]
[1723775674821,0.12549,144.1,144.01,0.504906]
[1723775675230,0.12549,144.08,144.01,0.504906]
[1723775675546,31.9202,144.08,144.03,20.0]
[1723775675739,31.9202,144.08,144.01,0.504906]
[1723775677342,31.9202,144.08,144.02,20.0]
[1723775677524,31.9202,144.08,144.03,40.0]
[1723775677724,31.9202,144.08,144.04,0.12549]
[1723775678356,31.9202,144.08,144.01,0.504906]
[1723775679028,1.73611007,144.07,144.01,0.504906]
[1723775679926,31.9202,144.08,144.01,20.504906]
[1723775680559,31.9202,144.08,144.01,0.504906]
[1723775681140,31.9202,144.08,144.02,0.25098]
[1723775681332,1.73599547,144.07,144.02,0.12549]
[1723775681531,0.12549,144.06,144.01,0.504906]
[1723775681748,1.98733212,144.06,144.01,0.504906]
[1723775681925,31.9202,144.08,144.01,0.504906]
[1723775681926,7.06659,144.07,144.01,0.504906]
[1723775682131,0.12549,144.06,144.01,0.504906]
[1723775682340,1.86182637,144.06,144.01,0.504906]
[1723775682739,7.06759,144.05,144.01,0.504906]
[1723775682936,0.12549,144.05,144.01,0.504906]
[1723775683150,7.06709,144.06,144.01,0.504906]
[1723775683651,0.12549,144.07,144.01,0.504906]
[1723775683858,0.12549,144.06,144.01,0.504906]
[1723775684065,6.9423,144.05,144.01,0.504906]
[1723775684242,0.12549,144.04,143.94,0.8577618]
[1723775684444,0.12549,144.04,143.95,0.12549]
[1723775684958,1.73659257,144.04,143.95,0.12549]
[1723775685355,0.12549,144.05,143.95,40.12549]
[1723775685550,31.9202,144.08,144.0,20.0]
[1723775685753,31.9202,144.08,144.01,0.12549]
[1723775685954,31.9202,144.08,144.01,20.12549]
[1723775686261,31.9202,144.08,144.02,0.12549]
[1723775687261,33.65574538,144.08,144.02,0.12549]
[1723775687833,1.73564317,144.07,144.02,0.12549]
[1723775688033,31.9202,144.08,144.02,0.12549]
[1723775688458,1.73594116,144.07,144.01,0.12549]
[1723775688846,1.86159166,144.07,143.97,20.0]
[1723775689037,1.73613505,144.06,143.96,20.0]
[1723775689236,7.06689,144.07,143.96,40.0]
[1723775689443,8.80309426,144.07,143.96,40.0]
[1723775689961,8.80307225,144.07,143.96,20.0]
[1723775690171,6.9415,144.06,143.96,20.0]
[1723775690384,32.04569,144.08,144.01,20.0]
[1723775690582,32.04569,144.08,144.0,0.12549]
[1723775690894,0.12549,144.07,143.95,59.22]
[1723775691056,6.942,144.05,143.94,20.8577618]
[1723775691255,6.942,144.05,143.96,20.0]
[1723775691455,6.942,144.05,143.94,0.8577618]
[1723775692060,6.942,144.05,143.95,20.0]
[1723775692257,6.942,144.05,143.94,20.8577618]
[1723775692850,6.9426,144.04,143.94,0.8577618]
[1723775693277,6.9426,144.04,143.94,20.8577618]
[1723775693470,7.06759,144.05,143.94,20.8577618]
[1723775693685,0.12549,144.04,143.94,20.8577618]
[1723775693860,7.06809,144.04,143.94,20.8577618]
[1723775694193,7.06809,144.04,143.94,0.8577618]
[1723775694194,0.12549,144.03,143.94,0.8577618]
[1723775694664,6.9447,144.0,143.94,0.8577618]
[1723775695680,7.19588,143.99,143.94,0.8577618]
[1723775695989,0.12549,143.99,143.94,0.8577618]
[1723775696172,0.25098,143.99,143.94,0.8577618]
[1723775696561,7.19588,143.99,143.94,0.8577618]
[1723775696763,0.25098,143.99,143.94,0.8577618]
[1723775696968,12.45,144.02,143.94,0.8577618]
[1723775697387,19.3936,144.02,143.94,0.8577618]
[1723775697889,12.45,144.02,143.94,0.8577618]
[1723775698079,12.45,144.02,143.95,0.12549]
[1723775698387,1.73667321,144.01,143.95,0.25098]
[1723775698891,12.45,144.02,143.96,20.0]
[1723775699072,12.45,144.02,143.97,0.25098]
[1723775699259,12.45,144.02,143.97,0.12549]
[1723775699458,12.45,144.02,143.95,0.12549]
[1723775699759,12.45,144.02,143.96,20.0]
[1723775700085,12.45,144.02,143.97,0.25098]
[1723775700273,1.73641119,144.01,143.97,0.12549]
[1723775700468,12.45,144.02,143.97,20.0]
[1723775700672,7.25993103,144.07,143.99,20.0]
[1723775700886,44.2902,144.08,144.02,20.0]
[1723775701252,44.2902,144.08,144.03,0.12549]
[1723775701453,44.2902,144.08,143.98,0.12549]
[1723775701658,1.73595973,144.07,143.98,0.25098]
[1723775701859,8.67715973,144.07,143.98,0.12549]
[1723775702079,6.942,144.05,143.98,0.12549]
[1723775702285,47.89743926,144.07,143.98,0.12549]
[1723775702570,51.2308,144.08,143.98,0.12549]
[1723775702752,0.25098,144.07,143.98,20.12549]
[1723775703157,44.2902,144.08,143.98,20.12549]
[1723775703364,44.2902,144.08,144.03,20.0]
[1723775703652,43.8827,144.13,144.05,20.0]
[1723775703856,43.8827,144.13,144.06,39.47098]
[1723775704064,43.8827,144.13,144.06,39.82521308]
[1723775704254,43.8827,144.13,144.06,39.47098]
[1723775704492,31.5127,144.18,144.09,79.22]
[1723775704671,31.5127,144.18,144.1,0.25098]
[1723775705404,12.37,144.19,144.12,39.22]
[1723775705558,12.37,144.19,144.13,65.25098]
[1723775705760,12.37,144.19,144.13,20.25098]
[1723775706170,43.8827,144.24,144.18,39.22]
[1723775706368,43.8827,144.24,144.19,0.60168532]
[1723775706577,12.37,144.24,144.19,65.25098]
[1723775706782,12.37,144.24,144.19,40.25098]
[1723775706988,14.29769332,144.29,144.15,20.0]
[1723775707170,6.9319,144.26,144.16,0.12549]
[1723775707372,14.18021011,144.27,144.16,0.12549]
[1723775707577,6.9314,144.27,144.17,20.0]
[1723775707776,0.12549,144.26,144.18,0.12549]
[1723775707970,6.9314,144.27,144.18,0.12549]
[1723775707971,0.12549,144.27,144.18,0.12549]
[1723775708298,12.5644,144.29,144.2,20.0]
[1723775708464,12.5644,144.29,144.21,0.25098]
[1723775708776,14.29771811,144.29,144.21,0.12549]
[1723775709019,39.22,144.26,144.13,1.58586989]
[1723775709294,6.9319,144.27,144.17,20.0]
[1723775709490,6.9319,144.27,144.15,59.22]
[1723775709700,6.9319,144.26,144.15,59.22]
[1723775709911,0.12549,144.25,144.15,20.0]
[1723775710068,0.12549,144.17,144.08,20.0]
[1723775710268,0.25098,144.17,144.08,20.0]
[1723775710473,0.25098,144.17,144.06,59.22]
[1723775710669,32.4297,144.18,144.09,20.0]
[1723775710911,32.4297,144.18,144.07,20.0]
[1723775711091,32.4297,144.18,144.11,20.0]
[1723775711284,32.4297,144.18,144.1,39.22]
[1723775711474,1.8602124,144.17,144.07,39.22]
[1723775711805,1.8602124,144.17,144.03,20.0]
[1723775711806,0.12549,144.13,144.03,20.0]
[1723775712105,0.12549,144.13,144.04,20.0]
[1723775712272,0.12549,144.15,144.04,20.0]
[1723775712473,1.86076911,144.15,144.03,20.0]
[1723775712662,6.9381,144.13,144.03,20.0]
[1723775712869,0.12549,144.12,144.03,20.0]
[1723775713066,0.12549,144.14,144.05,20.0]
[1723775713311,32.4297,144.18,144.07,59.22]
[1723775713466,6.9367,144.16,144.07,39.22]
[1723775713666,6.9364,144.17,144.07,39.22]
[1723775713889,32.4297,144.18,144.07,39.22]
[1723775714196,32.4297,144.18,144.08,0.12549]
[1723775714406,7.06219,144.16,144.08,0.25098]
[1723775714702,32.4297,144.18,144.09,20.0]
[1723775714703,0.25098,144.17,144.09,20.0]
[1723775715021,0.25098,144.17,144.1,0.25098]
[1723775715317,0.12549,144.13,144.04,20.0]
[1723775715669,0.25098,144.13,144.04,20.0]
[1723775715899,12.8278,144.12,144.01,59.22]
[1723775716109,0.25098,144.11,144.01,59.22]
[1723775716271,0.25098,144.11,144.0,20.0]
[1723775716476,0.12549,144.07,143.95,39.22]
[1723775716797,0.12549,144.08,144.02,20.0]
[1723775717005,0.12549,144.09,143.96,20.0]
[1723775717319,0.12549,144.06,143.95,39.22]
[1723775717611,0.12549,144.06,143.95,59.22]
[1723775717810,6.9421,144.05,143.95,59.22]
[1723775718106,7.19258,144.06,143.95,59.22]
[1723775718312,7.19258,144.06,143.94,0.8577618]
[1723775718313,0.12549,144.02,143.94,0.8577618]
[1723775718615,7.06889,144.02,143.94,0.8577618]
[1723775718922,1.73678199,144.01,143.94,0.8577618]
[1723775719077,39.17218,144.0,143.94,20.8577618]
[1723775719406,31.9766,144.0,143.94,20.8577618]
[1723775720402,31.9766,144.0,143.94,0.8577618]
[1723775720610,0.12549,143.99,143.94,0.8577618]
[1723775720814,0.25098,143.99,143.94,0.8577618]
[1723775721002,0.12549,143.94,143.8,0.8577618]
[1723775721201,0.12549,143.94,143.83,20.0]
[1723775721202,19.92069,143.94,143.83,20.0]
[1723775721384,1.73781178,143.93,143.83,20.0]
[1723775721714,12.8479,143.94,143.89,20.0]
[1723775721913,0.12549,143.93,143.83,20.0]
[1723775722216,1.9889755,143.93,143.81,20.0]
[1723775722511,0.12549,143.84,143.8,0.8577618]
[1723775722809,12.8479,143.85,143.8,0.8577618]